fUSD/lending_fUSD_20260702
["ID","MTS","AMOUNT","RATE_DAILY","PERIOD"]
[426851496,1782953464000,-151.0,0.00027397,2]
[426851495,1782953464000,-2384.232157,0.00027397,2]
[426851499,1782953464000,-299.383743,0.00027397,2]
[426851494,1782953464000,-261.022583,0.00027397,2]
[426851514,1782953464000,-499.775022,0.00027397,2]
[426851500,1782953464000,-261.022583,0.00027397,2]
[426851497,1782953464000,-499.775022,0.00027397,2]
[426851504,1782953464000,-299.383743,0.00027397,2]
[426851505,1782953464000,-261.022583,0.00027397,2]
[426851503,1782953464000,-286.652319,0.00027397,2]
[426851511,1782953464000,-286.652319,0.00027397,2]
[426851507,1782953464000,-286.652319,0.00027397,2]
[426851508,1782953464000,-299.383743,0.00027397,2]
[426851512,1782953464000,-299.383743,0.00027397,2]
[426851506,1782953464000,-499.775022,0.00027397,2]
[426851510,1782953464000,-499.775022,0.00027397,2]
[426851502,1782953464000,-499.775022,0.00027397,2]
[426851539,1782953464000,-261.022583,0.00027397,2]
[426851537,1782953464000,-151.0,0.00027397,2]
[426851540,1782953464000,-286.652319,0.00027397,2]
[426851576,1782953464000,-156.072775,0.00027397,2]
[426851574,1782953464000,-156.072775,0.00027397,2]
[426851567,1782953464000,-151.0,0.00027397,2]
[426851572,1782953464000,-156.072775,0.00027397,2]
[426851573,1782953464000,-156.072775,0.00027397,2]
[426851575,1782953464000,-156.072775,0.00027397,2]
[426851571,1782953464000,-156.072775,0.00027397,2]
[426851578,1782953464000,-156.072775,0.00027397,2]
[426851577,1782953464000,-156.072775,0.00027397,2]
[426851579,1782953464000,-156.072775,0.00027397,2]
[426851580,1782953464000,-156.072775,0.00027397,2]
[426851581,1782953464000,-156.072775,0.00027397,2]
[426851587,1782953464000,-156.072775,0.00027397,2]
[426851585,1782953464000,-156.072775,0.00027397,2]
[426851584,1782953464000,-151.0,0.00027397,2]
[426851586,1782953464000,-151.0,0.00027397,2]
[426851582,1782953464000,-156.072775,0.00027397,2]
[426851583,1782953464000,-156.072775,0.00027397,2]
[426851591,1782953464000,-156.072775,0.00027397,2]
[426851590,1782953464000,-151.0,0.00027397,2]
[426851589,1782953464000,-156.072775,0.00027397,2]
[426851588,1782953464000,-151.0,0.00027397,2]
[426851541,1782953464000,-261.022583,0.00027397,2]
[426851570,1782953464000,-53064.4,0.00027397,10]
[426851569,1782953464000,-27827.09,0.00027397,10]
[426851568,1782953464000,-266.304193,0.00027397,2]
[426851562,1782953464000,-151.0,0.00027397,2]
[426851538,1782953464000,-299.383743,0.00027397,2]
[426851543,1782953464000,-151.0,0.00027397,2]
[426851544,1782953464000,-286.652319,0.00027397,2]
[426851546,1782953464000,-151.0,0.00027397,2]
[426851547,1782953464000,-286.652319,0.00027397,2]
[426851548,1782953464000,-261.022583,0.00027397,2]
[426851566,1782953464000,-151.0,0.00027397,2]
[426851555,1782953464000,-261.022583,0.00027397,2]
[426851550,1782953464000,-151.0,0.00027397,2]
[426851551,1782953464000,-286.652328,0.00027397,2]
[426851549,1782953464000,-299.383743,0.00027397,2]
[426851552,1782953464000,-261.022583,0.00027397,2]
[426851545,1782953464000,-299.383743,0.00027397,2]
[426851554,1782953464000,-299.383743,0.00027397,2]
[426851556,1782953464000,-151.0,0.00027397,2]
[426851557,1782953464000,-299.383743,0.00027397,2]
[426851565,1782953464000,-151.0,0.00027397,2]
[426851560,1782953464000,-299.383743,0.00027397,2]
[426851558,1782953464000,-261.022583,0.00027397,2]
[426851563,1782953464000,-299.383737,0.00027397,2]
[426851559,1782953464000,-151.0,0.00027397,2]
[426851561,1782953464000,-261.022583,0.00027397,2]
[426851564,1782953464000,-261.022588,0.00027397,2]
[426851553,1782953464000,-151.0,0.00027397,2]
[426851609,1782953465000,-151.0,0.00027397,2]
[426851603,1782953465000,-151.0,0.00027397,2]
[426851601,1782953465000,-12321.18933357,0.00027397,10]
[426851600,1782953465000,-31899.15066643,0.00027397,10]
[426851594,1782953465000,-151.0,0.00027397,2]
[426851593,1782953465000,-156.072775,0.00027397,2]
[426851597,1782953465000,-156.072773,0.00027397,2]
[426851599,1782953465000,-151.0,0.00027397,2]
[426851595,1782953465000,-156.072775,0.00027397,2]
[426851598,1782953465000,-151.0,0.00027397,2]
[426851604,1782953465000,-151.0,0.00027397,2]
[426851592,1782953465000,-151.0,0.00027397,2]
[426851607,1782953465000,-151.0,0.00027397,2]
[426851596,1782953465000,-151.0,0.00027397,2]
[426851610,1782953465000,-151.0,0.00027397,2]
[426851619,1782953465000,-242.04896535,0.00027397,2]
[426851617,1782953465000,-310.988073,0.00027397,2]
[426851616,1782953465000,-622.027836,0.00027397,2]
[426851618,1782953465000,-379.97887065,0.00027397,2]
[426851615,1782953465000,-622.027836,0.00027397,2]
[426851620,1782953465000,-195.660468,0.00027397,2]
[426851602,1782953465000,-151.0,0.00027397,2]
[426851613,1782953465000,-622.027836,0.00027397,2]
[426851611,1782953465000,-151.0,0.00027397,2]
[426851612,1782953465000,-239.694683,0.00027397,2]
[426851608,1782953465000,-166.421535,0.00027397,2]
[426851606,1782953465000,-151.0,0.00027397,2]
[426851605,1782953465000,-151.0,0.00027397,2]
[426851614,1782953465000,-622.027836,0.00027397,2]
[426851621,1782953466000,-160.0,0.00022187,2]
[426851623,1782953466000,-293.33,0.00026598,10]
[426851622,1782953466000,-138.67,0.00026598,10]
[426851624,1782953466000,-6.67,0.00027397,2]
[426851625,1782953466000,-108.657605,0.00027397,2]
[426851626,1782953466000,-622.027836,0.00027397,2]
[426851627,1782953466000,-310.988073,0.00027397,2]
[426851628,1782953466000,-486.37240206,0.00027397,2]
[426851629,1782953467000,-1846.81650033,0.000139,3]
[426851630,1782953710000,1500000.0,0.00025967,120]
[426851632,1782953771000,1500000.0,0.00026878,120]
[426851633,1782953828000,78280.5033,0.00025967,120]
[426851638,1782953833000,-901.0,0.00015295,2]
[426851639,1782953833000,-896.0,0.00015297,2]
[426851637,1782953833000,-892.0,0.00015295,2]
[426851635,1782953833000,-624.97653305,0.00015292,2]
[426851634,1782953833000,-252.71775633,0.00015253,2]
[426851636,1782953833000,-906.0,0.00015293,2]
[426851640,1782953838000,2000.0,0.00015225,2]
[426851641,1782953910000,1318842.7775,0.00026878,120]
[426851642,1782953952000,499.02199826,0.00014999,2]
[426851643,1782954035000,-433.815,0.00023771,18]
[426851644,1782954115000,-5000.0,0.0003,90]
[426851645,1782954150000,-1000.0,0.0003,90]
[426851647,1782954254000,231.90130519,0.00014508,2]
[426851646,1782954254000,283.43492857,0.00014558,2]
[426851648,1782954259000,66418.0219,0.00030136,120]
[426851649,1782954346000,234.06167811,0.00015201,2]
[426851665,1782954405000,-150.0,0.00015606,2]
[426851650,1782954405000,-3153.18349967,0.00015301,3]
[426851651,1782954405000,-224.22072924,0.00015301,2]
[426851653,1782954405000,-887.0,0.00015302,2]
[426851654,1782954405000,-916.0,0.00015302,2]
[426851664,1782954405000,-903.0,0.00015479,2]
[426851655,1782954405000,-906.0,0.00015308,2]
[426851658,1782954405000,-896.0,0.00015334,2]
[426851652,1782954405000,-150.0,0.00015301,2]
[426851656,1782954405000,-910.0,0.00015308,2]
[426851659,1782954405000,-898.0,0.00015358,2]
[426851660,1782954405000,-918.0,0.00015358,2]
[426851661,1782954405000,-888.0,0.00015397,2]
[426851662,1782954405000,-883.0,0.00015397,2]
[426851663,1782954405000,-150.0,0.00015453,2]
[426851657,1782954405000,-897.0,0.00015318,2]
[426851667,1782954406000,-204.0,0.00015912,2]
[426851666,1782954406000,-150.0,0.00015759,2]
[426851674,1782954420000,310.7257225,0.00014358,2]
[426851675,1782954446000,-250.0,0.00016831,2]
[426851676,1782954446000,-500.0,0.00016832,2]
[426851678,1782954446000,-899.0,0.00018004,2]
[426851679,1782954446000,-917.0,0.00018004,2]
[426851677,1782954446000,-893.0,0.00017034,2]
[426851683,1782954489000,-398.45,0.00022562,2]
[426851684,1782954489000,-41.86941203,0.00023049,7]
[426851682,1782954489000,-2232.44643705,0.00022021,2]
[426851681,1782954489000,-1131.99,0.00021652,2]
[426851680,1782954489000,-437.0,0.00021397,2]
[426851686,1782954542000,2000.0,0.00030135,120]
[426851699,1782954633000,-891.0,0.0001953,2]
[426851698,1782954633000,-882.0,0.0001953,2]
[426851696,1782954633000,-152.0,0.0001953,2]
[426851705,1782954633000,-153.0,0.0001953,2]
[426851692,1782954633000,-4839.432513,0.0001953,2]
[426851695,1782954633000,-893.0,0.0001953,2]
[426851694,1782954633000,-300.1242569,0.0001953,2]
[426851700,1782954633000,-151.0,0.0001953,2]
[426851697,1782954633000,-151.0,0.0001953,2]
[426851702,1782954633000,-894.0,0.0001953,2]
[426851714,1782954633000,-150.0,0.00021665,2]
[426851704,1782954633000,-151.0,0.0001953,2]
[426851703,1782954633000,-909.0,0.0001953,2]
[426851713,1782954633000,-160.57233935,0.00021665,2]
[426851711,1782954633000,-256.68084532,0.00021665,2]
[426851709,1782954633000,-150.0,0.0001992,2]
[426851712,1782954633000,-151.0,0.00021665,2]
[426851710,1782954633000,-154.0,0.00020115,2]
[426851708,1782954633000,-150.0,0.00019724,2]
[426851706,1782954633000,-922.0,0.0001953,2]
[426851701,1782954633000,-899.0,0.0001953,2]
[426851707,1782954633000,-151.0,0.0001953,2]
[426851723,1782954634000,-883.53,0.00023061,7]
[426851731,1782954634000,-300.0,0.00023999,2]
[426851734,1782954634000,-158.0,0.00024,2]
[426851727,1782954634000,-5000.0,0.00023558,2]
[426851720,1782954634000,-2062.63833387,0.00022949,2]
[426851728,1782954634000,-433.815,0.00023771,18]
[426851726,1782954634000,-169.62042119,0.00023429,2]
[426851721,1782954634000,-151.0,0.00023049,2]
[426851715,1782954634000,-888.0,0.00021665,2]
[426851724,1782954634000,-849.01,0.00023228,2]
[426851722,1782954634000,-151.0,0.00023049,2]
[426851719,1782954634000,-252.42902503,0.00022781,2]
[426851736,1782954634000,-877.42,0.00024456,7]
[426851716,1782954634000,-898.0,0.00021665,2]
[426851717,1782954634000,-884.54,0.00021665,2]
[426851718,1782954634000,-250.0,0.00022307,2]
[426851725,1782954634000,-168.75116929,0.00023429,2]
[426851737,1782954634000,-500.0,0.00024657,2]
[426851729,1782954634000,-250.0,0.00023832,2]
[426851732,1782954634000,-154.0,0.00024,2]
[426851753,1782954634000,-249.81590691,0.00025512,2]
[426851739,1782954634000,-183.36,0.00024658,2]
[426851750,1782954634000,-506.25350788,0.00025512,2]
[426851752,1782954634000,-158.04813226,0.00025512,2]
[426851751,1782954634000,-456.33487306,0.00025512,2]
[426851744,1782954634000,-2016.4302137,0.00024978,2]
[426851746,1782954634000,-123.54757989,0.00024978,2]
[426851747,1782954634000,-154.0,0.00025,2]
[426851748,1782954634000,-194.0,0.00025,2]
[426851749,1782954634000,-158.0,0.00025,2]
[426851742,1782954634000,-228.16743653,0.00024679,2]
[426851735,1782954634000,-310.84,0.00024432,2]
[426851745,1782954634000,-176.57667701,0.00024978,2]
[426851733,1782954634000,-194.0,0.00024,2]
[426851740,1782954634000,-172.46,0.00024658,2]
[426851738,1782954634000,-500.0,0.00024657,2]
[426851730,1782954634000,-216.0,0.00023981,2]
[426851743,1782954634000,-339.24084238,0.00024679,2]
[426851741,1782954634000,-337.50233859,0.00024679,2]
[426851785,1782954638000,-452.69892284,0.00026575,2]
[426851775,1782954638000,-1209.634,0.00026026,12]
[426851783,1782954638000,-150.0,0.00026521,2]
[426851782,1782954638000,-244.71293212,0.00026397,2]
[426851778,1782954638000,-316.09626451,0.00026067,2]
[426851781,1782954638000,-1574.0845659,0.00026127,2]
[426851780,1782954638000,-675.00467718,0.00026067,2]
[426851777,1782954638000,-684.50230958,0.00026067,2]
[426851760,1782954638000,-499.02199826,0.00024658,2]
[426851776,1782954638000,-154.917,0.00026027,12]
[426851774,1782954638000,-158.0,0.00026,2]
[426851769,1782954638000,-172.46,0.00024658,2]
[426851770,1782954638000,-259.04535666,0.00025512,2]
[426851771,1782954638000,-152.0,0.00025767,3]
[426851773,1782954638000,-194.0,0.00026,2]
[426851772,1782954638000,-154.0,0.00026,2]
[426851768,1782954638000,-500.97800174,0.00024658,2]
[426851795,1782954638000,-500.0,0.00026877,2]
[426851779,1782954638000,-678.48168476,0.00026067,2]
[426851784,1782954638000,-276.0,0.00026521,2]
[426851792,1782954638000,-649.27666583,0.00026877,2]
[426851787,1782954638000,-843.75584647,0.00026623,2]
[426851786,1782954638000,-1206.0,0.0002662,10]
[426851811,1782954638000,-1278.90107036,0.00026878,2]
[426851809,1782954638000,-656.1836,0.00026878,2]
[426851807,1782954638000,-1139.9428,0.00026878,2]
[426851805,1782954638000,-502.60284518,0.00026877,2]
[426851804,1782954638000,-500.0,0.00026877,2]
[426851802,1782954638000,-474.54270383,0.00026877,2]
[426851799,1782954638000,-500.0,0.00026877,2]
[426851801,1782954638000,-500.0,0.00026877,2]
[426851803,1782954638000,-25.45729617,0.00026877,2]
[426851796,1782954638000,-500.0,0.00026877,2]
[426851797,1782954638000,-500.0,0.00026877,2]
[426851798,1782954638000,-500.0,0.00026877,2]
[426851789,1782954638000,-306.56,0.000267,2]
[426851793,1782954638000,-500.0,0.00026877,2]
[426851791,1782954638000,-500.0,0.00026877,2]
[426851794,1782954638000,-500.0,0.00026877,2]
[426851788,1782954638000,-368.46,0.000267,2]
[426851790,1782954638000,-419.38,0.000267,2]
[426851800,1782954638000,-500.0,0.00026877,2]
[426851890,1782954640000,-494.0,0.00026877,10]
[426851891,1782954640000,-299.63991134,0.00026878,2]
[426851889,1782954640000,-150.26704643,0.0001953,2]
[426851896,1782954643000,-151.0,0.0001953,2]
[426851897,1782954643000,-891.0,0.00026878,10]
[426851898,1782954643000,-279.8361183,0.00026878,2]
[426851899,1782954643000,-193.97428503,0.000269,2]
[426851900,1782954643000,-500.0,0.00026977,2]
[426851901,1782954643000,-590.42618729,0.00026977,2]
[426851904,1782954643000,-359.60666228,0.00026977,2]
[426851902,1782954643000,-500.0,0.00026977,2]
[426851906,1782954643000,-1338.21010558,0.00026978,2]
[426851907,1782954643000,-20217.22597939,0.00026978,2]
[426851908,1782954643000,-275.41416617,0.00026978,2]
[426851905,1782954643000,-214.25479044,0.00026977,2]
[426851903,1782954643000,-175.28113612,0.00026977,2]
[426851911,1782954647000,-509.0,0.00026978,2]
[426851914,1782954710000,666238.3011,0.00026878,120]
[426851916,1782954739000,1434.6192003,0.00026978,120]
[426851915,1782954739000,3000.0,0.00026978,120]
[426851917,1782954749000,152.12,0.00026152,120]
[426851919,1782955121000,333.0,0.00030136,120]
[426851920,1782955177000,555.0,0.00030136,120]
[426851922,1782955197000,444.0,0.00030136,120]
[426851923,1782955212000,888.0,0.00030136,120]
[426851926,1782955306000,504.27,0.00030136,120]
[426851931,1782955740000,2000.0,0.00030135,120]
[426851932,1782955814000,302.0,0.000301,120]
[426851938,1782955831000,-110.922,0.00017645,2]
[426851937,1782955831000,-326.848,0.00017645,2]
[426851944,1782955831000,-189.29,0.00017645,2]
[426851939,1782955831000,-189.29,0.00017645,2]
[426851941,1782955831000,-183.63047176,0.00017645,2]
[426851942,1782955831000,-107.13635771,0.00017645,2]
[426851943,1782955831000,-82.15364229,0.00017645,2]
[426851940,1782955831000,-5.65952824,0.00017645,2]
[426851956,1782955831000,-150.0,0.00018155,2]
[426851946,1782955831000,-67.58087373,0.00017645,2]
[426851958,1782955831000,-58.2361454,0.00018333,2]
[426851952,1782955831000,-150.0,0.00017977,2]
[426851948,1782955831000,-336.68,0.00017645,2]
[426851954,1782955831000,-175.07,0.00018016,2]
[426851950,1782955831000,-181.70922072,0.00017703,2]
[426851945,1782955831000,-121.70912627,0.00017645,2]
[426852028,1782955838000,-1925.56254032,0.00024017,2]
[426852019,1782955838000,-171.0,0.00024,2]
[426852015,1782955838000,-173.0,0.00024,2]
[426852017,1782955838000,-46.96845676,0.00024,2]
[426852009,1782955838000,-366.36,0.00023995,2]
[426852006,1782955838000,-444.0,0.0002376,2]
[426852014,1782955838000,-161.0,0.00024,2]
[426852013,1782955838000,-151.0,0.00024,2]
[426852020,1782955838000,-180.0,0.00024,2]
[426852008,1782955838000,-5000.0,0.0002398,2]
[426852012,1782955838000,-151.0,0.00024,2]
[426852027,1782955838000,-1925.56254032,0.00024017,2]
[426852022,1782955838000,-1925.56254032,0.00024017,2]
[426852029,1782955838000,-1925.56254032,0.00024017,2]
[426852030,1782955838000,-1925.56254032,0.00024017,2]
[426852016,1782955838000,-105.03154324,0.00024,2]
[426852021,1782955838000,-303.0,0.00024,2]
[426852024,1782955838000,-1925.56254032,0.00024017,2]
[426852018,1782955838000,-209.0,0.00024,2]
[426852026,1782955838000,-1925.56254032,0.00024017,2]
[426852025,1782955838000,-1925.56254032,0.00024017,2]
[426852034,1782955838000,-1925.56254032,0.00024017,2]
[426852031,1782955838000,-1925.56254032,0.00024017,2]
[426852033,1782955838000,-1925.56254032,0.00024017,2]
[426852023,1782955838000,-1925.56254032,0.00024017,2]
[426852007,1782955838000,-433.815,0.00023771,18]
[426851996,1782955838000,-252.95121078,0.000216,2]
[426852010,1782955838000,-200.0,0.00023995,2]
[426851981,1782955838000,-91.7638546,0.00018333,2]
[426851982,1782955838000,-246.0,0.00018511,2]
[426851992,1782955838000,-316.17422909,0.000216,2]
[426851985,1782955838000,-500.0,0.0001941,2]
[426851990,1782955838000,-565.08067587,0.00020948,2]
[426851986,1782955838000,-300.0,0.0001941,2]
[426851983,1782955838000,-185.42053177,0.0001931,2]
[426851984,1782955838000,-193.0,0.0001941,2]
[426851987,1782955838000,-250.0,0.0001941,2]
[426851989,1782955838000,-252.84732365,0.0001941,2]
[426851991,1782955838000,-235.38752737,0.00021232,2]
[426851988,1782955838000,-250.0,0.0001941,2]
[426852003,1782955838000,-172.12619268,0.00023422,2]
[426852000,1782955838000,-1852.42,0.00023207,2]
[426851993,1782955838000,-190.18706304,0.000216,2]
[426851995,1782955838000,-150.0,0.000216,2]
[426852001,1782955838000,-150.0,0.00023296,2]
[426851998,1782955838000,-972.20660584,0.00022331,2]
[426851994,1782955838000,-151.0,0.000216,2]
[426852002,1782955838000,-598.6,0.00023331,2]
[426851997,1782955838000,-160.0,0.00021977,2]
[426851999,1782955838000,-764.35,0.00023173,2]
[426852004,1782955838000,-777.0,0.00023607,2]
[426852032,1782955838000,-1925.56254032,0.00024017,2]
[426852005,1782955838000,-444.0,0.0002366,2]
[426852011,1782955838000,-157.0,0.00024,2]
[426852042,1782955838000,-1925.56254032,0.00024017,2]
[426852121,1782955838000,-504.08865584,0.00024748,2]
[426852036,1782955838000,-1925.56254032,0.00024017,2]
[426852102,1782955838000,-500.0,0.00024474,2]
[426852106,1782955838000,-500.0,0.00024656,2]
[426852108,1782955838000,-150.28229187,0.00024656,2]
[426852111,1782955838000,-777.0,0.00024657,2]
[426852110,1782955838000,-999.0,0.00024657,2]
[426852109,1782955838000,-547.2632782,0.00024656,2]
[426852112,1782955838000,-1111.0,0.00024657,2]
[426852114,1782955838000,-1000.0,0.00024658,2]
[426852113,1782955838000,-666.0,0.00024657,2]
[426852104,1782955838000,-254.53996036,0.00024656,2]
[426852115,1782955838000,-183.36,0.00024658,2]
[426852117,1782955838000,-224.89,0.00024658,2]
[426852118,1782955838000,-187.81,0.00024658,2]
[426852119,1782955838000,-344.25238536,0.00024671,2]
[426852120,1782955838000,-181.54374592,0.00024671,2]
[426852038,1782955838000,-1925.56254032,0.00024017,2]
[426852126,1782955838000,-151.0,0.00025,2]
[426852123,1782955838000,-483.71,0.00024833,2]
[426852122,1782955838000,-256.95,0.00024763,2]
[426852124,1782955838000,-501.93,0.00024833,2]
[426852125,1782955838000,-152.0,0.00025,2]
[426852127,1782955838000,-161.0,0.00025,2]
[426852129,1782955838000,-209.0,0.00025,2]
[426852130,1782955838000,-180.0,0.00025,2]
[426852128,1782955838000,-156.0,0.00025,2]
[426852100,1782955838000,-500.0,0.000242,2]
[426852094,1782955838000,-32878.14,0.00024018,2]
[426852116,1782955838000,-888.0,0.00024658,2]
[426852096,1782955838000,-8216.0,0.00024174,2]
[426852098,1782955838000,-178.86,0.000242,2]
[426852040,1782955838000,-1925.56254032,0.00024017,2]
[426852046,1782955838000,-1925.56254032,0.00024017,2]
[426852050,1782955838000,-1925.56254032,0.00024017,2]
[426852052,1782955838000,-1925.56254032,0.00024017,2]
[426852044,1782955838000,-1925.56254032,0.00024017,2]
[426852054,1782955838000,-1925.56254032,0.00024017,2]
[426852058,1782955838000,-1925.56254032,0.00024017,2]
[426852059,1782955838000,-1925.56254032,0.00024017,2]
[426852055,1782955838000,-1925.56254032,0.00024017,2]
[426852075,1782955838000,-1925.56254032,0.00024017,2]
[426852062,1782955838000,-1925.56254032,0.00024017,2]
[426852074,1782955838000,-1925.56254032,0.00024017,2]
[426852048,1782955838000,-1925.56254032,0.00024017,2]
[426852092,1782955838000,-150.0,0.00024018,2]
[426852063,1782955838000,-1925.56254032,0.00024017,2]
[426852067,1782955838000,-1925.56254032,0.00024017,2]
[426852069,1782955838000,-1925.56254032,0.00024017,2]
[426852065,1782955838000,-1925.56254032,0.00024017,2]
[426852079,1782955838000,-1925.56254032,0.00024017,2]
[426852090,1782955838000,-1925.56254032,0.00024017,2]
[426852084,1782955838000,-1925.56254032,0.00024017,2]
[426852072,1782955838000,-1925.56254032,0.00024017,2]
[426852088,1782955838000,-1925.56254032,0.00024017,2]
[426852082,1782955838000,-1925.56254032,0.00024017,2]
[426852086,1782955838000,-1925.56254032,0.00024017,2]
[426852165,1782955839000,-681.0,0.00026152,5]
[426852158,1782955839000,-675.0,0.00026152,5]
[426852167,1782955839000,-676.0,0.00026152,5]
[426852176,1782955839000,-669.0,0.00026321,5]
[426852177,1782955839000,-252.87002986,0.00026397,2]
[426852162,1782955839000,-664.0,0.00026152,5]
[426852166,1782955839000,-686.0,0.00026152,5]
[426852161,1782955839000,-250.0,0.00026152,5]
[426852157,1782955839000,-666.0,0.00026152,5]
[426852159,1782955839000,-674.0,0.00026152,5]
[426852171,1782955839000,-151.0,0.00026175,5]
[426852168,1782955839000,-677.0,0.00026152,5]
[426852174,1782955839000,-682.0,0.00026196,5]
[426852180,1782955839000,-452.69892284,0.00026575,2]
[426852175,1782955839000,-160.788,0.00026298,13]
[426852173,1782955839000,-683.0,0.00026178,5]
[426852170,1782955839000,-150.0,0.00026175,5]
[426852172,1782955839000,-666.0,0.00026175,5]
[426852181,1782955839000,-4186.71774674,0.00026578,2]
[426852178,1782955839000,-277.0,0.00026521,2]
[426852179,1782955839000,-1000.0,0.00026552,2]
[426852188,1782955839000,-5615.4629,0.00026778,2]
[426852185,1782955839000,-193193.5183883,0.00026678,2]
[426852184,1782955839000,-1000.0,0.00026616,2]
[426852187,1782955839000,-483.71,0.00026696,2]
[426852169,1782955839000,-152.0,0.00026175,5]
[426852153,1782955839000,-483.71,0.00026075,2]
[426852131,1782955839000,-2568.87,0.00025062,2]
[426852164,1782955839000,-678.0,0.00026152,5]
[426852189,1782955839000,-150.0,0.000269,5]
[426852138,1782955839000,-5816.03,0.00025709,2]
[426852137,1782955839000,-1000.0,0.00025707,2]
[426852134,1782955839000,-516.37857804,0.00025504,2]
[426852135,1782955839000,-273.80092383,0.00025504,2]
[426852132,1782955839000,-2437.98,0.00025105,2]
[426852133,1782955839000,-483.71,0.00025454,2]
[426852136,1782955839000,-363.08749184,0.00025504,2]
[426852140,1782955839000,-1033.31351895,0.00025836,2]
[426852139,1782955839000,-166.66,0.00025796,2]
[426852151,1782955839000,-316.09626451,0.00026059,2]
[426852150,1782955839000,-547.60184766,0.00026059,2]
[426852155,1782955839000,-1986.701,0.00026152,12]
[426852144,1782955839000,-176.90169528,0.00025978,2]
[426852142,1782955839000,-606.77,0.00025927,2]
[426852141,1782955839000,-500.0,0.00025837,2]
[426852146,1782955839000,-161.0,0.00026,2]
[426852148,1782955839000,-180.0,0.00026,2]
[426852143,1782955839000,-11851.32,0.00025973,2]
[426852147,1782955839000,-209.0,0.00026,2]
[426852149,1782955839000,-688.50477072,0.00026059,2]
[426852152,1782955839000,-544.63123776,0.00026059,2]
[426852154,1782955839000,-158.41358019,0.00026151,5]
[426852156,1782955839000,-247.0,0.00026152,5]
[426852160,1782955839000,-663.0,0.00026152,5]
[426852163,1782955839000,-675.0,0.00026152,5]
[426852145,1782955839000,-151.0,0.00026,2]
[426852183,1782955839000,-198.37895434,0.00026578,2]
[426852182,1782955839000,-174.5768565,0.00026578,2]
[426852248,1782955839000,-653.68246014,0.00027397,2]
[426852222,1782955839000,-151.0,0.00027397,2]
[426852221,1782955839000,-151.0,0.00027397,2]
[426852223,1782955839000,-162.82375,0.00027397,2]
[426852226,1782955839000,-151.0,0.00027397,2]
[426852229,1782955839000,-151.0,0.00027397,2]
[426852225,1782955839000,-335.197009,0.00027397,2]
[426852232,1782955839000,-162.82375,0.00027397,2]
[426852233,1782955839000,-151.0,0.00027397,2]
[426852227,1782955839000,-151.0,0.00027397,2]
[426852230,1782955839000,-162.82375,0.00027397,2]
[426852228,1782955839000,-162.82375,0.00027397,2]
[426852234,1782955839000,-266.457064,0.00027397,2]
[426852224,1782955839000,-300.0,0.00027397,2]
[426852236,1782955839000,-151.0,0.00027397,2]
[426852245,1782955839000,-157.45251489,0.00027397,2]
[426852246,1782955839000,-217.89415338,0.00027397,2]
[426852240,1782955839000,-47782.25,0.00027397,10]
[426852239,1782955839000,-1027.22,0.00027397,2]
[426852238,1782955839000,-151.0,0.00027397,2]
[426852243,1782955839000,-662.16604802,0.00027397,2]
[426852237,1782955839000,-151.0,0.00027397,2]
[426852241,1782955839000,-220.72201601,0.00027397,2]
[426852242,1782955839000,-441.44403201,0.00027397,2]
[426852235,1782955839000,-151.0,0.00027397,2]